bitfinex/quotes_SOLUSD_20251201
["timestamp","ask_amount","ask_price","bid_price","bid_amount"]
[1764560303451,8.55590218,126.97,126.94,7.94480164]
[1764560303827,0.68,126.96,126.93,15.8229391]
[1764560304641,0.68,126.96,126.94,7.94480164]
[1764560305845,7.87590218,126.97,126.94,7.94480164]
[1764560306145,0.7,126.96,126.94,7.94480164]
[1764560306343,0.7,126.97,126.94,7.94480164]
[1764560307045,0.7,126.97,126.95,7.94480164]
[1764560307749,7.87525594,126.98,126.95,7.94480164]
[1764560307948,8.57525594,126.98,126.95,7.94480164]
[1764560308250,8.57525594,126.98,126.96,7.94480164]
[1764560308547,7.87471825,126.99,126.97,2.86100697]
[1764560308847,0.7,126.98,126.97,61.5]
[1764560309027,0.7,126.98,126.94,64.36100697]
[1764560309234,3.56100697,126.98,126.94,64.36100697]
[1764560309433,0.7,126.97,126.94,64.36100697]
[1764560310165,8.57607102,126.97,126.94,61.5]
[1764560310451,0.7,126.96,126.94,61.5]
[1764560311765,0.7,126.96,126.94,72.23873874]
[1764560311932,0.7,126.96,126.94,64.36100697]
[1764560312330,0.7,126.96,126.94,61.5]
[1764560313330,0.7,126.96,126.91,39.83735593]
[1764560313331,11.43765038,126.96,126.91,61.5]
[1764560313526,11.43765038,126.96,126.91,64.36100697]
[1764560313729,0.7,126.95,126.91,72.24058348]
[1764560313953,0.7,126.95,126.91,61.5]
[1764560314158,2.86100697,126.93,126.89,2.86100697]
[1764560314464,3.5,126.94,126.89,2.86100697]
[1764560314465,7.87897888,126.92,126.89,2.86100697]
[1764560314959,8.57897888,126.92,126.89,2.86100697]
[1764560315639,7.87897888,126.92,126.89,2.86100697]
[1764560315841,0.7,126.92,126.89,10.74179906]
[1764560316041,0.7,126.91,126.89,2.86100697]
[1764560316426,7.87905317,126.92,126.89,2.86100697]
[1764560316844,0.7,126.91,126.89,2.86100697]
[1764560317044,4.2,126.91,126.88,2.96100697]
[1764560317356,7.06100697,126.91,126.88,0.1]
[1764560317650,0.7,126.9,126.88,0.1]
[1764560318653,11.44140504,126.9,126.88,0.1]
[1764560319052,3.5,126.91,126.88,0.1]
[1764560319257,0.7,126.9,126.88,0.1]
[1764560319831,3.5,126.91,126.88,2.96100697]
[1764560320049,4.2,126.91,126.88,2.96100697]
[1764560320439,7.87953358,126.92,126.9,2.86100697]
[1764560320644,0.7,126.91,126.89,2.86100697]
[1764560320940,8.57953358,126.92,126.89,2.86100697]
[1764560321252,0.7,126.91,126.88,0.1]
[1764560321443,0.7,126.91,126.88,2.96100697]
[1764560321844,0.7,126.91,126.88,0.1]
[1764560322553,8.57973748,126.91,126.88,0.1]
[1764560323056,0.7,126.9,126.88,0.1]
[1764560324539,14.94139491,126.9,126.88,0.1]
[1764560324965,0.7,126.89,126.88,0.1]
[1764560325743,3.56100697,126.89,126.88,0.1]
[1764560326552,14.94184864,126.89,126.88,0.1]
[1764560326959,11.44184864,126.89,126.88,0.1]
[1764560327158,14.94184864,126.89,126.88,0.1]
[1764560329954,7.88039068,126.9,126.88,2.96100697]
[1764560330163,4.2,126.93,126.89,2.86100697]
[1764560330363,0.7,126.92,126.89,2.86100697]
[1764560330555,0.7,126.92,126.88,0.43]
[1764560330746,0.7,126.92,126.89,2.86100697]
[1764560331966,8.57941203,126.92,126.89,2.86100697]
[1764560332146,2.86100697,126.91,126.88,0.1]
[1764560332347,3.56100697,126.91,126.88,0.1]
[1764560332548,0.7,126.9,126.88,0.1]
[1764560333054,4.2,126.9,126.88,0.1]
[1764560333374,7.06100697,126.9,126.88,0.1]
[1764560333553,12.37095189,126.89,126.88,0.1]
[1764560333954,20.25179356,126.89,126.88,0.1]
[1764560334355,41.66072935,126.89,126.88,0.1]
[1764560336373,32.85078443,126.89,126.88,0.1]
[1764560336868,41.66072935,126.89,126.88,1e-08]
[1764560337470,25.35186535,126.89,126.88,1e-08]
[1764560341658,28.85186535,126.89,126.88,1e-08]
[1764560341854,36.81294411,126.89,126.88,1e-08]
[1764560342662,25.35186535,126.89,126.88,1e-08]
[1764560342873,28.85186535,126.89,126.88,1e-08]
[1764560343272,20.89078659,126.89,126.88,1e-08]
[1764560343669,28.85186535,126.89,126.88,1e-08]
[1764560343857,25.35186535,126.89,126.88,1e-08]
[1764560344179,28.85186535,126.89,126.88,1e-08]
[1764560344359,29.87128549,126.89,126.88,1e-08]
[1764560344554,33.37128549,126.89,126.88,1e-08]
[1764560344757,29.87128549,126.89,126.88,1e-08]
[1764560345070,33.37128549,126.89,126.88,1e-08]
[1764560345274,20.36134057,126.89,126.88,1e-08]
[1764560345475,11.38084167,126.89,126.88,1e-08]
[1764560345670,49.65014949,126.89,126.88,1e-08]
[1764560346055,33.34128549,126.89,126.88,1e-08]
[1764560346286,25.11880892,126.85,126.84,0.1]
[1764560346494,48.98263458,126.85,126.84,0.1]
[1764560346695,49.65263458,126.85,126.84,0.1]
[1764560346991,69.36095148,126.85,126.82,0.1]
[1764560347154,12.4804989,126.83,126.82,0.1]
[1764560347357,15.9804989,126.83,126.82,0.1]
[1764560347581,13.1504989,126.83,126.82,0.1]
[1764560347759,29.28880892,126.83,126.82,0.1]
[1764560348078,41.76930782,126.83,126.82,0.1]
[1764560348468,49.65387771,126.83,126.82,0.1]
[1764560348996,27.69343389,126.83,126.82,0.1]
[1764560349357,16.308864,126.81,126.8,0.1]
[1764560349563,8.80994492,126.8,126.77,0.1]
[1764560349859,25.11880892,126.78,126.77,0.1]
[1764560350169,3.5,126.79,126.77,0.1]
[1764560350564,24.19560064,126.8,126.77,0.76]
[1764560350787,28.26993069,126.82,126.77,0.76]
[1764560350963,15.9804989,126.81,126.77,0.76]
[1764560351167,4.17,126.81,126.77,0.1]
[1764560351393,16.6504989,126.81,126.77,0.1]
[1764560351580,16.6504989,126.81,126.77,0.76]
[1764560351886,3.5,126.8,126.77,13.2404989]
[1764560352269,3.5,126.8,126.77,0.76]
[1764560352469,3.5,126.8,126.78,0.66]
[1764560353274,24.19349734,126.83,126.78,13.1404989]
[1764560353479,11.38463334,126.83,126.79,12.4804989]
[1764560353680,11.38463334,126.83,126.79,13.1404989]
[1764560353898,11.38463334,126.83,126.8,0.66]
[1764560354089,23.86513224,126.83,126.8,0.66]
[1764560354389,11.38463334,126.83,126.79,12.4804989]
[1764560354694,11.38463334,126.83,126.8,0.66]
[1764560354695,19.808864,126.83,126.8,0.66]
[1764560354889,12.4804989,126.81,126.77,0.76]
[1764560355093,12.4804989,126.79,126.77,0.1]
[1764560355278,3.5,126.78,126.77,0.1]
[1764560355606,16.6504989,126.78,126.77,0.1]
[1764560355910,25.46044382,126.78,126.77,0.1]
[1764560356270,25.46044382,126.78,126.76,0.1]
[1764560356271,8.80994492,126.77,126.76,0.1]
[1764560356467,46.15760946,126.77,126.76,0.1]
[1764560356904,24.19716564,126.77,126.76,0.1]
[1764560357103,49.65760946,126.77,126.76,0.1]
[1764560357406,37.34766454,126.77,126.76,0.1]
[1764560357611,40.84766454,126.77,126.76,0.1]
[1764560358094,3.5,126.77,126.76,0.1]
[1764560358497,24.53880054,126.77,126.76,0.1]
[1764560358692,24.53880054,126.77,126.76,1e-08]
[1764560358693,33.34874546,126.77,126.76,1e-08]
[1764560359903,25.11880892,126.73,126.66,0.66]
[1764560360101,12.4804989,126.69,126.64,13.1404989]
[1764560360425,12.4804989,126.66,126.63,0.1]
[1764560360695,7.8945258,126.68,126.64,0.66]
[1764560360895,3.52,126.7,126.64,0.66]
[1764560361080,16.978864,126.73,126.64,0.66]
[1764560361395,3.52,126.74,126.65,25.11880892]
[1764560361599,27.61123382,126.76,126.65,25.11880892]
[1764560361789,31.80123382,126.76,126.67,8.80994492]
[1764560362098,7.88892395,126.76,126.72,12.4804989]
[1764560362396,7.88892395,126.76,126.73,12.4804989]
[1764560362790,7.88844263,126.77,126.74,0.66]
[1764560362999,7.88844263,126.77,126.74,13.1404989]
[1764560363190,7.88844263,126.77,126.75,12.4804989]
[1764560363391,7.88844263,126.77,126.75,0.66]
[1764560364301,7.88844263,126.77,126.73,13.1404989]
[1764560364488,49.56964057,126.77,126.72,12.4804989]
[1764560364808,16.308864,126.76,126.72,12.4804989]
[1764560365298,7.88844263,126.77,126.75,12.4804989]
[1764560365501,7.88844263,126.77,126.73,0.66]
[1764560365899,7.88844263,126.77,126.74,12.4804989]
[1764560366199,7.88844263,126.77,126.73,13.1404989]
[1764560366587,7.88844263,126.77,126.74,13.1404989]
[1764560366782,11.40844263,126.77,126.74,13.1404989]
[1764560367403,0.72,126.76,126.71,0.66]
[1764560367603,0.72,126.76,126.72,12.4804989]
[1764560367783,16.308864,126.79,126.71,0.66]
[1764560367983,11.40644399,126.8,126.77,12.4804989]
[1764560368202,41.00207888,126.83,126.78,12.4804989]
[1764560368403,3.52,126.82,126.78,13.1404989]
[1764560368605,28.43405561,126.82,126.78,13.1404989]
[1764560369191,28.43405561,126.82,126.78,0.66]
[1764560369393,22.01044382,126.81,126.76,12.4804989]
[1764560369793,12.4804989,126.8,126.74,7.8898121]
[1764560370004,12.4804989,126.8,126.76,13.1404989]
[1764560370206,16.7204989,126.79,126.74,12.4804989]
[1764560370404,12.4804989,126.78,126.73,13.1404989]
[1764560370603,12.4804989,126.74,126.69,0.66]
[1764560370802,3.52,126.74,126.7,12.4804989]
[1764560371306,0.72,126.76,126.71,13.1404989]
[1764560371608,3.52,126.75,126.71,13.1404989]
[1764560371990,13.2004989,126.76,126.72,0.66]
[1764560372313,3.52,126.75,126.71,13.1404989]
[1764560372808,28.7893629,126.77,126.72,13.1404989]
[1764560373108,16.0004989,126.78,126.73,12.4804989]
[1764560373409,3.52,126.78,126.74,12.4804989]
[1764560373610,3.52,126.78,126.75,12.4804989]
[1764560373910,3.52,126.78,126.75,13.1404989]
[1764560374116,12.4804989,126.81,126.76,13.1404989]
[1764560374413,23.88655496,126.81,126.76,13.1404989]
[1764560374711,12.12605606,126.81,126.77,0.66]
[1764560374917,23.88655496,126.81,126.77,0.66]
[1764560375105,44.32108851,126.81,126.77,0.66]
[1764560375411,7.88525704,126.82,126.79,12.4804989]
[1764560375992,7.88332676,126.85,126.8,13.1404989]
[1764560376192,3.52,126.84,126.8,13.1404989]
[1764560376792,11.40406316,126.84,126.8,13.1404989]
[1764560376994,12.12406316,126.84,126.8,13.1404989]
[1764560379200,44.31443276,126.84,126.8,13.1404989]
[1764560379418,24.60456206,126.84,126.8,13.1404989]
[1764560379912,12.12406316,126.84,126.8,0.66]
[1764560380297,12.12406316,126.84,126.8,13.1404989]
[1764560381517,12.12406316,126.84,126.8,0.66]
[1764560381703,12.12406316,126.84,126.8,13.1404989]
[1764560381901,12.12406316,126.84,126.8,0.66]
[1764560382111,12.12406316,126.84,126.8,13.1404989]
[1764560382412,12.12406316,126.84,126.8,0.66]
[1764560382618,12.12406316,126.84,126.8,13.1404989]
[1764560383016,3.52,126.83,126.8,13.1404989]
[1764560383520,7.88383827,126.85,126.82,12.4804989]
[1764560383702,7.88383827,126.85,126.81,0.66]
[1764560383703,7.88383827,126.85,126.84,12.4804989]
[1764560384016,7.88383827,126.85,126.83,12.4804989]
[1764560384522,7.88383827,126.85,126.83,13.1404989]
[1764560385022,7.88383827,126.85,126.84,13.1404989]
[1764560385192,7.88383827,126.85,126.84,12.4804989]
[1764560386120,7.88218697,126.87,126.84,13.1404989]
[1764560386416,11.40218697,126.87,126.85,12.4804989]
[1764560386720,3.52,126.87,126.82,8.54519161]
[1764560386918,12.12244295,126.87,126.83,12.4804989]
[1764560387104,11.40244295,126.87,126.83,13.1404989]
[1764560387304,11.40244295,126.87,126.84,12.4804989]
[1764560387617,7.88244295,126.87,126.85,12.4804989]
[1764560387793,7.88155879,126.88,126.85,13.1404989]
[1764560388000,7.88051544,126.9,126.87,12.4804989]
[1764560388215,7.88051544,126.9,126.86,0.66]
[1764560388416,8.60051544,126.9,126.87,12.4804989]
[1764560388994,0.72,126.89,126.84,28.25313418]
[1764560389203,0.72,126.89,126.85,12.4804989]
[1764560389424,0.72,126.89,126.85,13.1404989]
[1764560389603,13.2004989,126.89,126.85,0.66]
[1764560389805,13.2004989,126.89,126.85,13.1404989]
[1764560390021,0.72,126.89,126.85,13.1404989]
[1764560390322,40.06156595,126.9,126.85,13.1404989]
[1764560390521,28.30106705,126.9,126.86,12.4804989]
[1764560391027,0.72,126.89,126.85,21.02374946]
[1764560391209,8.60051544,126.9,126.86,12.4804989]
[1764560391521,11.40051544,126.9,126.87,12.4804989]
[1764560391716,8.80994492,126.93,126.89,12.4804989]
[1764560391717,24.90722215,126.93,126.89,12.4804989]
[1764560392024,24.90722215,126.93,126.87,0.66]
[1764560392025,3.52,126.92,126.88,12.4804989]
[1764560392419,4.24,126.92,126.88,12.4804989]
[1764560392605,4.24,126.92,126.89,12.4804989]
[1764560392924,7.87959971,126.91,126.88,13.1404989]
[1764560393628,0.72,126.9,126.87,12.4804989]
[1764560393822,0.72,126.9,126.86,12.4804989]
[1764560394211,0.72,126.9,126.86,13.1404989]
[1764560394412,13.2004989,126.9,126.86,0.66]
[1764560395024,0.72,126.9,126.86,13.1404989]
[1764560395214,8.60058821,126.9,126.86,21.02320121]
[1764560395415,8.60058821,126.9,126.87,12.4804989]
[1764560395812,8.60058821,126.9,126.86,21.02320121]
[1764560397637,0.68,126.89,126.86,12.4804989]
[1764560397948,7.87978235,126.91,126.87,13.2004989]
[1764560398113,8.55978235,126.91,126.87,13.2004989]
[1764560398314,0.68,126.9,126.87,12.4804989]
[1764560398521,8.55978235,126.91,126.87,12.4804989]
[1764560398721,7.87978235,126.91,126.87,13.2004989]
[1764560398924,0.68,126.9,126.87,12.4804989]
[1764560399420,4.2,126.9,126.87,12.4804989]
[1764560400334,12.08025644,126.9,126.87,12.4804989]
[1764560400550,0.68,126.89,126.86,73.9804989]
[1764560400711,11.40025644,126.9,126.87,13.2004989]
[1764560401036,7.87947071,126.92,126.88,13.2004989]
[1764560401218,7.87947071,126.92,126.89,12.4804989]
[1764560401534,28.24822682,126.96,126.91,12.4804989]
[1764560401741,28.24822682,126.96,126.94,12.4804989]
[1764560401742,7.87649653,126.96,126.94,12.4804989]
[1764560402533,3.72,126.97,126.95,12.4804989]
[1764560402534,0.2,126.97,126.95,12.4804989]
[1764560403124,0.2,126.97,126.96,13.2004989]
[1764560403834,0.2,126.97,126.96,16.308864]
[1764560404031,0.2,126.97,126.96,28.7893629]
[1764560404208,0.2,126.97,126.96,12.4804989]
[1764560404615,0.2,126.97,126.95,7.87661306]
[1764560404840,0.2,126.97,126.95,20.35711196]
[1764560405012,9.48994492,127.03,126.96,0.72]
[1764560405217,0.88,127.04,127.02,12.4804989]
[1764560405636,0.2,127.04,126.99,9.33994492]
[1764560405818,0.88,127.04,127.0,0.53]
[1764560406139,0.2,127.04,127.01,12.4804989]
[1764560406322,0.88,127.04,127.01,12.4804989]
[1764560406524,7.94022105,127.03,126.98,47.39134387]
[1764560406841,7.94022105,127.03,127.0,7.94022105]
[1764560406842,0.68,127.03,127.0,7.94022105]
[1764560407134,0.2,127.04,127.01,7.94022105]
[1764560407356,0.2,127.04,126.99,0.53]
[1764560407357,0.2,127.04,127.02,7.94022105]
[1764560407925,0.2,127.04,126.98,47.3918597]
[1764560408124,0.2,127.04,127.01,7.94022105]
[1764560408125,0.88,127.04,127.01,7.94022105]
[1764560408648,8.75155698,127.04,127.01,7.94022105]
[1764560408854,0.68,127.03,127.0,15.81378843]
[1764560409012,7.94022105,127.02,126.98,7.8746976]
[1764560409214,7.94022105,127.0,126.95,7.94022105]
[1764560409434,0.68,127.02,126.97,7.94022105]
[1764560409636,7.94022105,127.01,126.97,7.94022105]
[1764560410030,0.68,127.0,126.97,7.94022105]
[1764560410423,8.55402575,127.0,126.97,7.94022105]
[1764560410821,0.68,126.99,126.96,7.94022105]
[1764560412449,8.55508173,126.99,126.95,7.94022105]
[1764560413534,0.68,126.98,126.95,7.94022105]
[1764560414135,0.68,126.98,126.95,15.8173282]
[1764560414341,8.55508173,126.99,126.96,7.94022105]
[1764560414639,7.87508173,126.99,126.96,7.94022105]
[1764560414860,0.68,126.99,126.96,7.94022105]
[1764560415151,0.68,127.02,126.98,7.94022105]
[1764560415327,0.68,127.02,127.0,7.94022105]
[1764560415516,0.68,127.02,126.99,7.94022105]
[1764560415721,8.55302168,127.02,126.99,7.94022105]
[1764560416133,0.68,127.01,126.99,7.94022105]
[1764560416527,0.65965169,127.01,126.99,7.94022105]
[1764560417421,12.11987274,127.01,126.97,7.94022105]
[1764560417823,7.94022105,126.99,126.95,15.81692696]
[1764560418023,15.81423679,127.0,126.95,15.81692696]
[1764560418446,0.68,126.99,126.96,7.94022105]
[1764560418826,1.99999999,127.1,126.98,7.94022105]
[1764560419051,0.2,127.04,127.03,7.94022105]
[1764560419421,0.2,127.04,127.03,8.49022105]
[1764560419628,0.2,127.04,127.03,17.30016597]
[1764560419828,0.2,127.04,127.03,33.1125432]
[1764560420038,0.2,127.04,127.03,25.17232215]
[1764560420439,0.2,127.04,127.03,17.2321011]
[1764560420747,0.2,127.04,127.03,25.17232215]
[1764560424641,0.2,127.04,127.03,16.36237723]
[1764560426045,0.2,127.04,127.03,7.87215618]
[1764560426360,16.71205464,127.04,126.98,19.68686218]
[1764560426534,16.71205464,127.04,127.0,7.94022105]
[1764560426735,0.2,127.04,126.99,0.55]
[1764560426933,0.9,127.04,127.03,7.94022105]
[1764560427151,0.2,127.04,127.03,7.94022105]
[1764560427453,0.9,127.04,127.03,7.94022105]
[1764560427650,0.2,127.04,127.03,7.94022105]
[1764560427846,0.9,127.04,127.03,7.94022105]
[1764560428044,0.2,127.04,127.03,7.94022105]
[1764560428244,0.9,127.04,127.02,7.94022105]
[1764560428753,0.2,127.04,127.03,7.94022105]
[1764560428957,0.2,127.04,127.01,28.10505232]
[1764560429260,0.2,127.04,127.03,7.94022105]
[1764560429746,0.2,127.04,127.03,15.81237723]
[1764560429942,0.2,127.04,127.03,32.67124123]
[1764560430261,0.2,127.04,127.03,36.19124123]
[1764560430858,0.2,127.04,127.01,3.52]
[1764560431155,8.77157487,127.04,127.01,7.94022105]
[1764560431537,0.7,127.03,127.01,7.94022105]
[1764560431958,0.2,127.04,127.02,7.94022105]
[1764560432164,0.2,127.04,127.01,7.8733722]
[1764560432165,0.2,127.04,127.03,7.94022105]
[1764560432843,0.2,127.04,127.03,8.49022105]
[1764560433880,0.2,127.04,127.03,15.81237723]
[1764560435243,0.2,127.04,127.03,16.36237723]
[1764560435845,0.2,127.04,127.03,25.17232215]
[1764560436065,0.2,127.04,127.03,33.1125432]
[1764560436371,0.2,127.04,127.03,25.17232215]
[1764560436866,0.2,127.04,127.03,32.12124123]
[1764560438050,0.2,127.04,127.03,32.67124123]
[1764560438362,0.2,127.04,127.03,24.18102018]
[1764560438568,0.2,127.04,127.03,32.12124123]
[1764560438764,0.2,127.04,127.03,24.24908505]
[1764560439468,0.2,127.04,127.03,32.12124123]
[1764560439960,0.2,127.04,127.03,32.67124123]
[1764560440268,0.2,127.09,127.08,7.94022105]
[1764560440573,0.2,127.09,127.08,11.46022105]
[1764560440770,0.2,127.09,127.08,11.81022105]
[1764560440948,0.9,127.09,127.07,7.94022105]
[1764560441477,8.64022105,127.08,127.04,7.94022105]
[1764560441861,0.7,127.07,127.04,15.81141669]
[1764560442670,0.7,127.07,127.04,7.87119564]
[1764560442976,0.7,127.07,127.04,15.81141669]
[1764560443353,0.9,127.09,127.06,7.94022105]
[1764560443568,0.7,127.08,127.06,7.94022105]
[1764560443771,0.7,127.08,127.05,7.94022105]
[1764560444962,0.7,127.08,127.05,15.81079894]
[1764560447556,0.2,127.09,127.07,7.94022105]
[1764560447757,0.2,127.09,127.05,27.89787029]
[1764560447960,0.9,127.09,127.06,7.94022105]
[1764560449057,0.9,127.09,127.06,15.81016551]
[1764560449261,0.7,127.08,127.06,15.81016551]
[1764560449661,0.9,127.09,127.06,15.81016551]
[1764560449862,0.2,127.09,127.08,7.94022105]
[1764560450688,0.9,127.09,127.07,7.94022105]
[1764560450864,0.9,127.09,127.06,7.86994446]
[1764560451063,0.7,127.08,127.06,7.86994446]
[1764560451289,0.7,127.08,127.05,15.81089317]
[1764560452578,0.2,127.09,127.07,7.94022105]
[1764560452785,0.9,127.09,127.07,7.94022105]
[1764560453190,0.2,127.09,127.08,7.94022105]
[1764560453399,0.9,127.09,127.08,7.94022105]
[1764560453685,0.9,127.09,127.07,7.94022105]
[1764560454786,0.9,127.09,127.08,7.86905886]
[1764560454990,0.9,127.09,127.08,15.80927991]
[1764560454991,0.2,127.09,127.08,15.80927991]
[1764560455592,0.2,127.09,127.08,16.15927991]
[1764560455800,0.2,127.09,127.08,15.80927991]
[1764560456887,0.2,127.09,127.08,7.94022105]
[1764560458689,0.2,127.09,127.07,27.54387345]
[1764560458989,0.2,127.09,127.08,15.80927991]
[1764560459794,0.89,127.09,127.08,15.80927991]
[1764560460793,0.89,127.09,127.07,7.86967813]
[1764560460993,0.89,127.09,127.08,7.94022105]
[1764560461188,0.2,127.09,127.08,7.94022105]
[1764560461490,0.2,127.09,127.07,27.54387345]
[1764560461690,0.2,127.09,127.08,7.94022105]
[1764560462095,0.2,127.09,127.07,27.54387345]
[1764560462277,0.89,127.09,127.07,7.86967813]
[1764560462690,0.69,127.08,127.07,7.86967813]
[1764560464396,0.69,127.08,127.05,15.81087967]
[1764560464805,8.63022105,127.08,127.05,7.87065862]
[1764560465000,0.69,127.08,127.05,7.87065862]
[1764560465304,0.69,127.07,127.05,7.87065862]
[1764560465502,0.69,127.07,127.05,15.81087967]
[1764560466688,0.2,127.09,127.06,7.94022105]
[1764560466890,0.69,127.08,127.06,69.44022105]
[1764560467206,0.69,127.08,127.06,61.5]
[1764560468295,8.5590748,127.08,127.06,61.5]
[1764560468696,0.69,127.07,127.06,61.5]
[1764560469605,0.2,127.09,127.06,82.15551094]
[1764560469789,0.2,127.09,127.08,12.43551569]
[1764560470501,0.2,127.09,127.08,21.59546061]
[1764560470810,0.2,127.09,127.08,34.0309763]
[1764560471015,0.2,127.09,127.08,21.59546061]
[1764560471707,0.2,127.09,127.08,29.46451947]
[1764560472304,1e-08,127.09,127.08,29.46451947]
[1764560472497,0.2,127.16,127.12,8.80994492]
[1764560472703,0.2,127.16,127.15,12.43551569]
[1764560473013,0.89,127.16,127.13,3.52]
[1764560473202,0.89,127.16,127.13,12.43551569]
[1764560473397,0.2,127.16,127.15,12.43551569]
[1764560474117,0.2,127.16,127.15,20.30024239]
[1764560474799,0.2,127.16,127.15,40.47910639]
[1764560475302,0.2,127.2,127.15,52.56462208]
[1764560475503,0.2,127.2,127.19,12.43551569]
[1764560475699,0.2,127.2,127.19,24.76546061]
[1764560476013,0.2,127.2,127.19,32.62771393]
[1764560476394,1e-08,127.2,127.19,32.62771393]
[1764560478114,1e-08,127.21,127.19,20.19219824]
[1764560478296,1e-08,127.21,127.2,12.43551569]
[1764560479805,1e-08,127.21,127.2,21.24546061]
[1764560480112,1e-08,127.21,127.2,45.41595983]
[1764560480599,1e-08,127.21,127.2,106.91595983]
[1764560482620,1e-08,127.21,127.2,7.86163522]
[1764560482803,0.69000001,127.21,127.2,20.29715091]
[1764560483208,0.69000001,127.21,127.2,7.86163522]
[1764560483720,0.69000001,127.21,127.19,3.52]
[1764560484122,0.69000001,127.21,127.19,7.86225332]
[1764560484630,0.69000001,127.21,127.18,7.86287152]
[1764560484993,0.69000001,127.21,127.19,12.43551569]
[1764560485194,1e-08,127.21,127.2,12.43551569]
[1764560485612,0.66000001,127.21,127.19,15.93551569]
[1764560486399,0.66000001,127.21,127.19,3.5]
[1764560486716,0.66000001,127.21,127.2,7.86163522]
[1764560487018,0.66000001,127.21,127.19,3.5]
[1764560487235,0.66000001,127.21,127.19,11.36211774]
[1764560490007,1e-08,127.21,127.19,23.79763343]
[1764560490205,0.66000001,127.21,127.19,11.36211774]
[1764560490410,0.66000001,127.21,127.19,23.79763343]
[1764560490618,0.66000001,127.21,127.19,11.36211774]
[1764560490923,0.66000001,127.21,127.19,23.79763343]
[1764560492529,1e-08,127.21,127.19,23.79763343]
[1764560492831,0.66000001,127.21,127.19,23.79763343]
[1764560493008,0.66000001,127.21,127.19,11.36211774]
[1764560493817,1e-08,127.21,127.2,12.43551569]
[1764560494020,1e-08,127.21,127.19,11.36211774]
[1764560494223,1e-08,127.21,127.19,23.79763343]
[1764560494425,0.66000001,127.21,127.19,23.79763343]
[1764560496026,0.66000001,127.21,127.19,3.5]
[1764560496225,13.0955157,127.21,127.17,7.86332397]
[1764560496406,0.66000001,127.21,127.17,20.29883966]
[1764560496602,0.66,127.2,127.17,7.86332397]
[1764560497451,13.09551569,127.2,127.16,27.67294864]
[1764560497626,13.09551569,127.2,127.16,40.10846433]
[1764560497822,0.66,127.19,127.16,40.10846433]
[1764560498124,0.66,127.19,127.16,23.79960033]
[1764560498533,12.43551569,127.18,127.14,61.5]
[1764560498836,12.43551569,127.18,127.15,7.86471429]
[1764560499021,13.09551569,127.17,127.14,3.5]
[1764560499227,12.43551569,127.16,127.14,3.5]
[1764560499419,12.43551569,127.15,127.12,7.86647141]
[1764560499620,12.43551569,127.14,127.1,11.36782061]
[1764560499936,13.09551569,127.14,127.1,23.8033363]
[1764560500238,0.66,127.13,127.1,23.8033363]
[1764560502520,27.52280427,127.17,127.11,12.43551569]
[1764560502721,0.66,127.16,127.13,12.43551569]
[1764560503334,0.66,127.16,127.12,15.93551569]
[1764560503840,0.66,127.16,127.13,7.86596397]
[1764560504141,13.09551569,127.16,127.13,7.86596397]
[1764560504437,12.43551569,127.14,127.11,7.86688218]
[1764560504817,12.43551569,127.15,127.11,7.86688218]
[1764560505016,0.66,127.13,127.11,7.86688218]
[1764560505222,12.43551569,127.17,127.12,15.93551569]
[1764560505424,13.09551569,127.16,127.12,3.5]
[1764560505618,12.43551569,127.17,127.12,15.93551569]
[1764560505819,0.66,127.15,127.12,15.93551569]
[1764560506044,12.43551569,127.13,127.1,7.86782061]
[1764560506335,12.43551569,127.12,127.1,7.86782061]
[1764560506839,0.66,127.11,127.1,7.86782061]
[1764560508044,13.09551569,127.11,127.08,7.86905886]
[1764560508347,0.66,127.11,127.08,20.30457455]
[1764560508538,0.66,127.1,127.08,20.30457455]
[1764560510032,0.66,127.12,127.09,12.43551569]
[1764560510219,0.66,127.11,127.08,39.9772217]
[1764560510414,13.09551569,127.11,127.08,7.86905886]